bitfinex/quotes_ETHUSD_20250722
["timestamp","ask_amount","ask_price","bid_price","bid_amount"]
[1753171726821,2.74363476,3644.8,3644.0,0.7103105]
[1753171727069,0.1368,3644.4,3644.1,0.2554105]
[1753171727254,2.88079176,3644.4,3644.2,0.2554105]
[1753171727426,2.88079176,3644.4,3644.3,0.2554105]
[1753171727625,0.1368,3644.4,3644.3,0.2554105]
[1753171728535,2.8807359,3644.4,3644.3,0.2554105]
[1753171728743,2.74438772,3643.8,3643.7,0.8469]
[1753171728952,2.74448743,3643.7,3643.0,0.9474499]
[1753171729158,0.5853,3644.5,3643.0,0.92]
[1753171729321,2.74458548,3643.6,3643.0,0.92]
[1753171729525,2.74447316,3643.7,3643.0,0.92]
[1753171729726,14.5,3644.4,3643.1,0.48234915]
[1753171729927,2.74428735,3644.0,3643.2,2.7448397]
[1753171730165,2.74428735,3644.0,3643.0,4.07698915]
[1753171730166,5.771,3644.9,3643.3,0.48234764]
[1753171730323,0.002,3644.9,3643.9,0.9076]
[1753171730632,0.002,3644.9,3644.0,0.48234237]
[1753171730824,2.7437899,3644.6,3644.0,0.4549]
[1753171731021,0.002,3644.9,3644.3,2.74396589]
[1753171731226,0.002,3644.9,3644.0,0.48234237]
[1753171731227,0.002,3644.9,3644.4,2.74386548]
[1753171731430,0.002,3644.9,3644.5,0.0274386]
[1753171731623,0.002,3644.9,3644.5,2.74385303]
[1753171731828,0.00842039,3645.0,3644.5,2.74385303]
[1753171731829,0.00842039,3645.0,3644.9,2.74355949]
[1753171732137,0.002,3645.8,3645.7,3.58775745]
[1753171732388,2.7420031,3647.0,3645.9,2.74278958]
[1753171732538,2.74203882,3647.0,3646.1,2.74264237]
[1753171732862,2.74175843,3647.3,3646.2,3.22489188]
[1753171733159,14.5,3647.4,3646.3,3.19733878]
[1753171733379,0.002,3647.5,3646.7,0.8945]
[1753171733522,0.002,3647.5,3646.8,0.4823213]
[1753171734235,2.74169226,3647.4,3646.8,0.4549]
[1753171734434,2.74361369,3647.5,3646.8,0.4549]
[1753171734845,2.74182,3647.3,3646.8,0.4549]
[1753171735032,2.74186993,3647.2,3646.7,0.8945]
[1753171735231,0.002,3647.5,3646.0,3.66087119]
[1753171735232,2.74213179,3646.8,3646.0,3.66087119]
[1753171735445,2.74362298,3647.5,3646.0,0.9182]
[1753171735636,0.002,3647.5,3646.0,0.9182]
[1753171735966,2.74267527,3646.1,3645.5,0.9164]
[1753171736127,2.74251243,3646.3,3645.5,0.9164]
[1753171736330,14.5,3647.1,3645.5,0.9164]
[1753171736532,2.74289671,3645.8,3645.5,0.9164]
[1753171736750,0.20733328,3646.9,3645.5,0.9164]
[1753171736961,2.74301979,3645.7,3645.5,0.9164]
[1753171737161,2.74301979,3645.7,3645.1,0.02743408]
[1753171737363,5.694,3646.5,3645.0,6.5719]
[1753171737667,2.74275369,3646.0,3645.2,0.4549]
[1753171737874,5.694,3646.5,3645.2,0.4549]
[1753171737875,2.7429065,3645.8,3645.2,0.4549]
[1753171738036,6.2763,3646.6,3645.2,0.4549]
[1753171738231,2.7432307,3645.4,3645.0,0.8619]
[1753171738566,0.4442,3646.3,3645.0,0.8619]
[1753171738868,17.24258131,3646.2,3645.0,0.8619]
[1753171739047,0.1368,3645.1,3645.0,0.8619]
[1753171739743,2.88020895,3645.1,3644.8,0.02743634]
[1753171739949,5.669,3645.3,3644.3,0.8619]
[1753171740261,2.7439359,3644.4,3644.3,0.8619]
[1753171740570,6.2503,3646.0,3644.3,1.3168]
[1753171740775,2.74356854,3644.9,3644.4,0.25430841]
[1753171741068,1.0295,3646.0,3644.5,0.25430841]
[1753171741269,5.659,3645.8,3644.6,0.25430841]
[1753171741455,2.74363476,3644.8,3644.7,0.25430841]
[1753171742875,2.74288222,3645.8,3644.7,0.25430841]
[1753171743044,2.74303117,3645.7,3644.9,2.74350987]
[1753171743246,2.74290895,3645.8,3645.0,3.48010876]
[1753171743470,2.74243089,3646.4,3645.2,0.8454]
[1753171743669,2.74313143,3645.5,3645.3,0.25430841]
[1753171743870,2.74310794,3645.5,3645.4,0.25470518]
[1753171744069,3.18730794,3645.5,3645.4,0.25470518]
[1753171744580,2.74310794,3645.5,3645.4,0.25470518]
[1753171744874,17.24310794,3645.5,3645.4,0.25470518]
[1753171745634,2.74308215,3645.6,3645.4,0.25470518]
[1753171745877,2.74308215,3645.6,3644.9,0.4549]
[1753171745878,2.74308215,3645.6,3645.5,0.25470518]
[1753171746164,2.74308215,3645.6,3645.5,0.25499784]
[1753171747467,2.74397002,3644.4,3644.1,0.9348]
[1753171747673,2.74388876,3644.5,3644.1,0.9348]
[1753171747984,2.74388876,3644.5,3643.0,2.744938]
[1753171747985,14.5,3644.4,3642.9,0.8597]
[1753171748272,14.5,3644.4,3643.0,0.4288]
[1753171748575,2.74386627,3644.5,3643.8,2.7443281]
[1753171748758,2.74322092,3645.4,3644.0,2.74420745]
[1753171748961,14.5,3645.3,3643.9,4.03279408]
[1753171749266,5.59,3645.8,3644.0,3.2004194]
[1753171749448,0.002,3645.9,3644.5,2.74384041]
[1753171749790,2.74322451,3645.4,3644.6,0.02743785]
[1753171749971,0.1368,3644.9,3644.7,0.4288]
[1753171750273,2.7429646,3645.7,3644.8,3.62126604]
[1753171750438,2.74355949,3644.9,3644.8,0.8502]
[1753171750639,2.88035949,3644.9,3644.3,1.279]
[1753171750948,2.74371423,3644.7,3644.3,1.279]
[1753171751157,0.1368,3644.9,3644.3,1.279]
[1753171751483,0.1368,3644.9,3644.4,0.02743935]
[1753171751663,2.7437168,3644.7,3644.3,1.279]
[1753171751971,2.74365525,3644.8,3644.3,1.279]
[1753171752269,0.1368,3644.9,3644.3,1.279]
[1753171752473,0.1368,3644.9,3644.4,0.4288]
[1753171752768,2.88055968,3644.7,3644.4,0.4288]
[1753171753280,0.1368,3644.7,3644.4,0.4288]
[1753171753453,0.1368,3644.7,3644.5,0.4288]
[1753171753838,0.1368,3645.2,3644.5,0.5656]
[1753171754059,0.1368,3645.2,3645.0,2.74345207]
[1753171754263,2.74309884,3645.6,3645.1,0.4288]
[1753171754447,0.1368,3645.5,3645.2,0.4288]
[1753171754756,0.002,3645.9,3645.4,0.8502]
[1753171754962,0.002,3645.9,3645.8,2.74288222]
[1753171755162,0.002,3645.9,3645.8,3.32031104]
[1753171755360,0.002,3645.9,3645.8,4.57188222]
[1753171756695,0.002,3645.9,3645.8,4.59931104]
[1753171756875,0.002,3647.4,3646.0,0.9243]
[1753171757053,0.002,3646.7,3646.2,0.55]
[1753171757257,0.002,3646.7,3646.6,2.74228048]
[1753171757757,0.002,3646.7,3646.6,4.02198048]
[1753171758165,0.002,3646.7,3646.6,4.04940328]
[1753171759493,0.002,3646.7,3646.6,4.3043875]
[1753171759656,0.002,3647.4,3647.3,3.59265417]
[1753171759858,0.002,3647.4,3647.3,9.36805593]
[1753171760060,0.002,3647.4,3647.3,9.76943839]
[1753171760488,0.002,3647.4,3647.3,0.25498422]
[1753171760658,2.743679,3647.4,3647.3,0.25498422]
[1753171760868,0.002,3647.4,3647.3,0.25498422]
[1753171761191,0.002,3647.4,3647.3,0.68378422]
[1753171761397,0.002,3647.4,3647.3,3.7681144]
[1753171761602,0.002,3647.4,3647.3,4.64293194]
[1753171761890,0.002,3647.4,3647.3,4.6155144]
[1753171762480,0.002,3647.5,3647.4,2.741679]
[1753171762681,0.002,3647.5,3647.4,8.92546322]
[1753171763265,0.002,3647.5,3647.4,10.21118256]
[1753171763993,0.002,3647.5,3647.4,11.09858256]
[1753171764193,0.002,3648.3,3648.2,2.74107779]
[1753171764416,0.002,3648.3,3648.2,9.39487278]
[1753171764615,0.002,3648.3,3648.2,9.79626201]
[1753171764762,0.002,3648.3,3648.2,11.18680512]
[1753171765262,0.1368,3649.4,3649.3,2.74025155]
[1753171765458,2.7392007,3650.7,3649.3,7.07608422]
[1753171765697,0.1368,3649.6,3649.4,0.25498422]
[1753171765867,2.73980436,3649.9,3649.5,0.25498422]
[1753171766195,2.73990503,3649.8,3649.6,0.25498422]
[1753171766358,2.73990503,3649.8,3649.3,5.474]
[1753171766359,2.73966393,3650.1,3649.3,5.474]
[1753171766563,2.73900483,3651.0,3649.5,0.8925]
[1753171766771,0.1368,3650.8,3649.6,0.70979134]
[1753171766958,14.5,3651.3,3650.0,0.1368]
[1753171767185,0.1368,3650.5,3650.1,5.72059108]
[1753171767371,0.4381,3651.2,3649.7,0.4288]
[1753171767575,0.1368,3650.1,3649.8,5.71619896]
[1753171767776,0.1368,3650.1,3649.8,5.463]
[1753171768484,2.73991294,3649.8,3649.5,0.8925]
[1753171768695,2.73995122,3649.7,3649.6,0.2529651]
[1753171769370,0.1368,3649.6,3649.3,5.451]
[1753171769570,0.1368,3649.6,3649.4,0.25283893]
[1753171769766,0.1368,3649.6,3649.3,5.451]
[1753171769965,0.1368,3649.6,3649.0,0.9219]
[1753171769966,0.1368,3649.3,3649.0,0.9219]
[1753171770212,2.8770527,3649.3,3649.1,0.25285733]
[1753171770369,2.8770527,3649.3,3649.2,0.25285733]
[1753171770570,0.1368,3649.0,3648.1,5.435]
[1753171770899,0.1368,3648.9,3648.3,0.1368]
[1753171771117,0.1368,3648.9,3648.4,0.25280992]
[1753171771284,0.1368,3648.9,3648.3,0.1368]
[1753171771285,0.1368,3648.9,3648.5,0.28021844]
[1753171771606,0.1368,3648.9,3648.6,0.25280992]
[1753171771909,0.1368,3648.9,3648.7,0.25277078]
[1753171772204,0.1368,3648.9,3648.5,2.76824937]
[1753171772205,0.1368,3648.9,3648.8,0.25277078]
[1753171772405,0.1368,3648.9,3648.8,2.99340959]
[1753171772606,14.5,3649.9,3648.8,2.99340959]
[1753171772607,0.1368,3649.2,3649.1,2.74040174]
[1753171772900,0.1368,3649.6,3649.1,0.28018655]
[1753171773099,0.6053,3650.5,3649.2,6.10458254]
[1753171773281,0.1368,3650.0,3649.4,0.1368]
[1753171773484,0.1368,3650.0,3649.5,0.28018355]
[1753171773695,0.1368,3650.0,3649.6,0.25278254]
[1753171773890,0.1368,3650.0,3649.7,0.28004995]
[1753171774066,0.20589008,3651.0,3649.9,0.8717]
[1753171774265,0.6053,3651.2,3650.0,0.25265044]
[1753171774266,0.1368,3650.5,3650.0,0.25265044]
[1753171774489,14.5,3650.4,3649.8,5.411]
[1753171774701,2.87639275,3650.2,3649.9,0.25255108]
[1753171774887,0.1368,3650.2,3649.8,5.411]
[1753171775087,0.1368,3650.2,3649.9,0.25255069]
[1753171775287,0.1368,3650.2,3649.8,5.411]
[1753171775490,0.1368,3650.2,3649.9,0.25253001]
[1753171775684,0.1368,3650.2,3650.0,0.25253001]
[1753171775877,0.1368,3650.2,3650.1,0.25253001]
[1753171776469,0.20732829,3651.0,3650.1,0.72663001]
[1753171776470,2.73917774,3650.8,3650.1,0.72663001]
[1753171776672,2.87616024,3650.5,3650.2,0.25253001]
[1753171776871,14.5,3650.4,3650.3,0.25246575]
[1753171777099,14.5,3650.4,3649.9,0.1368]
[1753171777322,14.5,3650.4,3650.0,0.2524721]
[1753171777605,14.5,3650.4,3650.1,0.2524721]
[1753171777808,14.5,3650.4,3650.2,0.2524721]
[1753171778017,0.1368,3650.2,3649.8,5.411]
[1753171778173,0.1368,3650.2,3649.9,0.25247807]
[1753171778376,2.94158898,3651.0,3649.7,5.376]
[1753171778377,0.20260274,3651.0,3649.7,5.376]
[1753171778633,0.20260274,3651.0,3649.8,0.72669896]
[1753171778634,3.0,3651.0,3649.8,0.72669896]
[1753171778834,0.4543,3651.5,3649.9,0.27999697]
[1753171779040,3.0,3651.2,3650.1,0.8683]
[1753171779325,2.7388052,3651.3,3650.2,0.25259896]
[1753171779326,2.73950086,3650.3,3650.2,0.25259896]
[1753171780326,17.2410151,3651.0,3650.2,0.25259896]
[1753171780327,3.0,3650.9,3650.2,0.25259896]
[1753171780624,2.73942581,3650.4,3650.3,0.25259896]
[1753171780805,2.73957591,3650.2,3649.0,0.8547]
[1753171781005,2.73957591,3650.2,3648.5,0.4741]
[1753171781006,2.74039053,3649.2,3649.1,0.25289644]
[1753171782729,15.1079,3649.6,3649.1,0.25289644]
[1753171782894,2.74025155,3649.3,3649.2,0.25289644]
[1753171785819,2.74025155,3649.3,3648.0,0.8764]
[1753171785820,2.74064696,3648.8,3648.0,0.8764]
[1753171785997,3.4543,3649.3,3648.1,0.02741152]
[1753171786201,6.69646373,3649.6,3648.1,0.02741152]
[1753171786202,3.0,3649.4,3648.1,0.02741152]
[1753171786406,2.74070435,3648.7,3648.1,5.33841152]
[1753171786697,14.5,3649.2,3648.3,2.74100265]
[1753171786925,14.5,3649.2,3648.2,5.7841]
[1753171787122,14.5,3649.2,3648.0,0.8764]
[1753171787497,2.74055195,3648.9,3648.2,2.74103175]
[1753171787696,2.74078631,3648.6,3648.1,5.7791]
[1753171788138,2.74072192,3648.7,3648.1,5.7791]
[1753171788314,2.74060625,3648.9,3648.1,5.7791]
[1753171788630,2.87740625,3648.9,3648.3,0.1368]
[1753171789002,0.1368,3648.9,3648.3,2.87778937]
[1753171789202,0.1368,3648.9,3648.3,0.1368]
[1753171789401,0.2,3649.0,3648.4,0.50150927]
[1753171789620,0.2,3649.0,3648.7,0.1368]
[1753171789858,0.2,3649.0,3648.7,5.291]
[1753171790428,0.2,3649.0,3648.8,0.4741]
[1753171790627,0.2,3649.0,3648.7,5.291]
[1753171790833,0.2,3649.0,3648.6,5.282]
[1753171790834,2.94052148,3649.0,3648.6,5.282]
[1753171791317,0.1368,3648.7,3648.6,5.282]
[1753171791742,2.94048522,3649.0,3648.6,5.282]
[1753171791743,2.94047967,3649.0,3648.6,5.282]
[1753171791910,0.3368,3649.0,3648.6,5.282]
[1753171792110,0.2,3649.0,3648.9,2.74055194]
[1753171792613,0.2,3649.0,3648.9,8.48665194]
[1753171793013,0.2,3649.0,3648.9,5.7461]
[1753171793216,5.73964181,3650.2,3648.9,8.28665194]
[1753171793217,2.7400568,3649.6,3648.9,8.28665194]
[1753171793438,0.002,3649.3,3648.9,8.28665194]
[1753171793651,0.002,3649.3,3648.9,8.28664822]
[1753171793852,0.002,3649.3,3649.1,2.74038742]
[1753171794056,0.002,3649.3,3649.2,0.02740326]
[1753171794357,2.73996594,3649.7,3649.0,3.21451322]
[1753171794675,2.73996594,3649.7,3649.1,2.74038655]
[1753171795232,2.73990441,3649.8,3649.1,2.74038655]
[1753171795452,2.73990441,3649.8,3649.0,0.4741]
[1753171795752,2.74001066,3649.7,3649.0,2.740462]
[1753171796052,2.74000362,3649.7,3649.0,2.740462]
[1753171796256,3.0,3650.2,3649.1,0.02740401]
[1753171796628,2.74000483,3649.7,3649.1,2.76780117]
[1753171796817,2.74000483,3649.7,3649.1,0.02740401]
[1753171797022,2.74000483,3649.7,3649.1,2.76776121]
[1753171797223,2.73973818,3650.0,3649.1,3.96020531]
[1753171797520,14.5,3650.3,3649.3,2.7402354]
[1753171797742,2.73980243,3649.9,3649.4,5.51614024]
[1753171797949,2.73980243,3649.9,3649.5,0.25573853]
[1753171798166,2.73980243,3649.9,3649.6,0.25573853]
[1753171798336,14.5,3650.3,3649.6,0.25573853]
[1753171798521,2.73987615,3649.8,3649.7,0.25573853]
[1753171800053,5.73987615,3649.8,3649.7,0.25573853]
[1753171800854,2.74017646,3649.4,3649.3,5.219]
[1753171801063,2.73989261,3649.8,3649.3,5.9488499]
[1753171801266,1.0622,3650.9,3649.4,0.75725166]
[1753171801481,0.20319027,3650.3,3649.6,0.9149]
[1753171801644,0.20319027,3650.3,3649.7,0.42296507]
[1753171801968,2.73974863,3650.0,3649.8,0.2557499]
[1753171802124,2.73974863,3650.0,3649.9,0.2557499]
[1753171802524,2.87648064,3650.1,3649.9,0.2557499]
[1753171802762,0.1368,3650.1,3650.0,0.2557093]
[1753171802976,0.20374985,3650.3,3650.0,0.2557093]
[1753171803284,2.87644188,3650.2,3650.1,0.25570341]
[1753171803440,0.1368,3650.2,3650.1,0.25570341]
[1753171803642,2.94859583,3650.3,3650.1,0.25570341]
[1753171803854,0.20909115,3650.3,3650.2,1.12970341]
[1753171804147,17.24113211,3650.8,3650.2,1.12970341]
[1753171804453,2.73935077,3650.5,3650.3,0.25570341]
[1753171804652,2.73935077,3650.5,3650.4,0.25570341]
[1753171805469,0.002,3650.8,3650.4,5.90380341]
[1753171805680,0.002,3650.8,3650.5,0.72980341]
[1753171805996,0.002,3651.0,3650.5,0.72980341]
[1753171805997,0.002,3651.0,3650.9,2.73905064]
[1753171806268,0.002,3651.0,3650.9,3.15894455]
[1753171806441,0.002,3651.0,3650.9,3.60164455]
[1753171806764,0.002,3651.0,3650.9,0.83520341]
[1753171806968,0.002,3651.0,3650.9,8.74025405]
[1753171807166,0.002,3651.0,3650.9,6.00120341]
[1753171807532,2.74097562,3651.0,3650.9,0.25570341]
[1753171809337,6.17937562,3651.0,3650.9,0.25570341]
[1753171809743,6.17937562,3651.0,3649.9,0.1368]
[1753171809744,2.73972602,3650.0,3649.9,0.1368]
[1753171809949,2.73996453,3649.7,3649.6,5.143]
[1753171810355,2.73989393,3649.8,3649.6,5.143]
[1753171810559,2.73982541,3649.9,3649.6,5.143]
[1753171810764,2.87653577,3650.0,3649.6,5.143]
[1753171810933,0.1368,3650.0,3649.3,0.1368]
[1753171811130,0.003721,3650.9,3648.6,0.1368]
[1753171811131,0.1368,3649.4,3648.6,0.1368]
[1753171811371,0.1368,3649.2,3648.9,2.74050281]
[1753171811571,3.0,3650.4,3648.9,2.74050281]
[1753171811572,0.1368,3649.5,3649.0,5.60910476]
[1753171811767,0.1368,3649.5,3648.9,0.1368]
[1753171811944,2.7402635,3649.3,3649.0,5.137]
[1753171812132,0.1368,3649.2,3649.0,5.137]
[1753171812332,2.87713402,3649.2,3649.0,5.137]
[1753171812532,0.1368,3649.2,3649.0,5.137]
[1753171812731,0.1368,3649.2,3649.1,5.13]
[1753171814888,2.87712664,3649.2,3649.1,5.13]
[1753171815076,0.1368,3649.2,3649.1,5.13]
[1753171815279,2.87712664,3649.2,3649.1,5.13]
[1753171815580,2.87714494,3649.2,3649.1,5.115]
[1753171816062,2.87714494,3649.2,3649.1,5.111279]
[1753171816269,0.1368,3649.2,3649.1,5.111279]
[1753171816442,2.87712664,3649.2,3649.1,5.111279]
[1753171817045,2.74040174,3649.1,3649.0,0.001]
[1753171817348,5.74040174,3649.1,3649.0,0.001]
[1753171817570,26.44530174,3649.1,3649.0,0.001]
[1753171817767,2.74107779,3648.2,3648.0,6.052208]
[1753171817947,2.41226015,3648.2,3648.0,6.052208]
[1753171818373,2.74100634,3648.3,3648.0,6.052208]
[1753171818689,2.740902,3648.5,3648.0,0.953208]
[1753171818861,2.74072828,3648.7,3648.0,0.953208]
[1753171819182,3.0,3649.0,3648.0,0.953208]
[1753171819475,0.4384,3648.8,3648.0,0.953208]
[1753171819776,3.0,3648.9,3648.0,0.953208]
[1753171819983,0.1368,3648.3,3648.2,2.74107779]
[1753171820167,0.1368,3648.7,3648.2,1.4001]
[1753171820355,0.1368,3648.7,3648.6,2.74077728]
[1753171821054,0.86914304,3649.5,3648.6,0.47010777]
[1753171821245,0.1368,3649.0,3648.9,2.74055194]
[1753171821445,0.002,3650.3,3648.9,6.4457]
[1753171821643,0.002,3650.3,3649.6,0.1368]
[1753171821860,0.002,3650.3,3649.1,0.928]
[1753171821861,0.002,3650.3,3650.0,0.1368]
[1753171822056,0.002,3650.3,3649.7,5.33514327]
[1753171822057,0.1388,3650.3,3650.1,0.25514327]
[1753171822255,0.1388,3650.3,3650.2,0.25514327]
[1753171822484,2.74150086,3650.3,3650.2,0.25514327]
[1753171823048,0.002,3650.3,3650.2,0.25514327]
[1753171823849,0.002,3650.3,3650.2,2.99471918]
[1753171824072,3.40633191,3651.2,3650.2,2.99471918]
[1753171824073,0.002,3651.3,3650.3,0.9579]
[1753171824275,0.002,3651.3,3650.9,0.1368]
[1753171824597,0.002,3651.3,3651.1,2.73886442]
[1753171824764,0.002,3651.3,3651.2,2.99396886]
[1753171824960,0.002,3651.3,3651.2,3.02135711]
[1753171825146,0.002,3651.3,3651.2,0.25514327]
[1753171826170,2.74075058,3651.3,3651.2,0.25514327]
[1753171826753,3.17915058,3651.3,3651.2,0.25514327]
[1753171826994,2.74075058,3651.3,3651.2,0.25514327]
[1753171827147,2.74075058,3651.3,3649.3,6.575]
[1753171827148,2.73941789,3650.5,3649.7,2.73993069]
[1753171827351,3.55,3650.3,3648.1,0.001]
[1753171827578,2.74100265,3648.3,3648.2,0.25503523]
[1753171827887,16.58341614,3648.3,3648.2,0.25503523]
[1753171829051,16.78523288,3648.3,3648.2,0.25503523]
[1753171829351,16.58341614,3648.3,3648.2,0.25503523]
[1753171829550,14.5,3648.3,3648.2,0.25503523]
[1753171829963,3.0,3648.9,3648.2,1.09278226]
[1753171830286,5.74051203,3649.0,3648.2,0.83774703]
[1753171830579,3.40768181,3649.4,3648.2,0.83774703]
[1753171830580,3.0,3649.1,3648.2,0.83774703]
[1753171830780,0.6675,3649.4,3648.3,0.96151002]
[1753171830982,2.74062913,3648.8,3648.3,0.9341]
[1753171831160,5.74026281,3649.3,3648.4,0.89409387]
[1753171831373,2.74046305,3649.1,3648.4,0.89409387]
[1753171831570,2.74048014,3649.0,3648.4,0.89409387]
[1753171831964,0.6675,3649.4,3648.4,0.89409387]
[1753171832165,2.74053465,3649.0,3648.4,0.4427]
[1753171832494,0.87087644,3649.4,3648.4,0.4427]
[1753171832657,3.20337644,3649.4,3648.5,2.76826085]
[1753171832994,0.6675,3650.5,3648.6,0.4427]
[1753171833196,2.73973241,3650.0,3649.3,2.74024741]
[1753171833366,2.94286224,3650.0,3649.3,2.74024741]
[1753171833565,0.20312983,3650.0,3649.3,2.74024741]
[1753171833888,0.6675,3650.5,3649.4,0.901]
[1753171834088,2.73987052,3649.9,3649.1,3.6413768]
[1753171834300,2.73992809,3649.8,3649.1,0.901]
[1753171834761,2.73992809,3649.8,3649.1,3.64139069]
[1753171835094,2.974,3652.4,3649.1,3.64139069]
[1753171835095,0.6695,3651.3,3649.5,2.74005499]
[1753171835269,2.87616769,3650.5,3649.9,0.1368]
[1753171835470,0.1368,3650.5,3650.1,2.73965096]
[1753171835669,0.1368,3650.5,3650.2,3.18227591]
[1753171835975,0.1368,3650.5,3650.0,0.8709]
[1753171836178,2.8761634,3650.5,3650.0,0.8709]
[1753171836487,0.1368,3650.2,3649.9,5.051]
[1753171836687,0.1368,3650.0,3649.6,5.9237]
[1753171836856,0.1368,3650.0,3649.6,0.8787]
[1753171837062,2.87653588,3650.0,3649.3,0.1368]
[1753171837377,0.1368,3649.7,3649.2,5.041]
[1753171837571,0.1368,3649.7,3649.2,6.31279124]
[1753171837771,0.1368,3649.7,3649.1,1.74276415]
[1753171837971,0.1368,3649.4,3648.8,11.7528]
[1753171838196,2.74046478,3649.1,3648.8,5.041]
[1753171838491,0.1368,3648.9,3648.8,5.041]
[1753171838653,0.33875206,3648.9,3648.8,5.041]
[1753171838858,3.079304,3648.9,3648.8,5.041]
[1753171839288,2.74063276,3648.8,3648.6,0.9235]
[1753171839478,2.74062705,3648.8,3648.7,0.25564741]
[1753171839681,2.74107779,3648.2,3647.6,0.001]
[1753171841215,7.42877779,3648.2,3647.6,0.001]
[1753171841361,12.44777779,3648.2,3648.1,1e-08]
[1753171841557,3.42795292,3648.1,3648.0,1e-08]
[1753171841761,3.29160383,3647.5,3647.4,1e-08]
[1753171842010,18.06726756,3647.5,3647.4,1e-08]
[1753171842215,18.53186756,3647.5,3647.4,1e-08]
[1753171842361,18.20295151,3647.5,3647.4,1e-08]
[1753171842979,13.18895151,3647.5,3647.4,1e-08]
[1753171843981,18.19995151,3647.5,3647.4,1e-08]
[1753171846196,18.20095151,3647.5,3647.4,1e-08]
[1753171847199,11.09778778,3647.5,3647.4,1e-08]
[1753171847698,18.20095151,3647.5,3647.4,1e-08]
[1753171848868,13.18895151,3647.5,3647.4,1e-08]
[1753171849099,18.20195151,3647.5,3647.4,1e-08]
[1753171849297,18.20195151,3647.5,3646.6,1e-08]
[1753171849298,3.96530528,3646.7,3646.6,1e-08]
[1753171849499,11.97830528,3646.7,3646.6,1e-08]
[1753171849701,12.44290528,3646.7,3646.6,1e-08]
[1753171851169,12.64722976,3646.7,3646.6,1e-08]
[1753171853306,10.50822976,3646.7,3646.6,1e-08]
[1753171853506,15.52122976,3646.7,3646.6,1e-08]
[1753171853918,10.50822976,3646.7,3646.6,1e-08]
[1753171854115,10.50822976,3646.7,3644.2,0.9116]
[1753171854116,0.55,3645.4,3644.2,0.9116]
[1753171854307,0.55,3645.0,3644.2,0.9116]
[1753171854615,3.0,3644.6,3644.2,0.9116]
[1753171854933,5.014,3644.5,3644.2,1.3648]
[1753171855124,2.7439835,3644.4,3644.2,0.4532]
[1753171855289,2.74401119,3644.3,3644.2,0.4532]
[1753171855480,2.74398537,3644.4,3644.2,0.4532]
[1753171855676,5.014,3644.4,3644.2,0.4532]
[1753171855881,2.74431241,3643.9,3643.8,0.8914]
[1753171856097,2.74443388,3643.8,3643.4,0.4532]
[1753171856294,2.74438772,3643.8,3643.5,0.4532]
[1753171856494,2.74447727,3643.7,3643.5,0.4532]
[1753171856722,2.74439635,3643.8,3643.5,0.4532]
[1753171857081,17.24434022,3643.9,3643.5,0.4532]
[1753171857287,17.45086179,3643.9,3643.3,0.9266]
[1753171857494,2.74451797,3643.7,3643.3,0.9266]
[1753171857698,5.014,3643.7,3642.6,3.627021]
[1753171857896,3.0,3643.8,3642.7,0.4532]
[1753171858120,2.74500548,3643.0,3642.7,0.4532]
[1753171858322,5.014,3642.9,3642.8,0.4532]
[1753171858794,5.014,3642.9,3642.6,0.8818]
[1753171858989,2.74514965,3642.8,3642.6,0.8818]
[1753171859201,3.0,3643.5,3642.6,0.8818]
[1753171859497,14.70654582,3643.9,3643.4,0.9414]
[1753171859698,0.20654582,3643.9,3643.5,0.4532]
[1753171859899,5.014,3644.1,3643.5,0.4532]
[1753171860101,2.74388249,3644.5,3643.7,2.74440644]
[1753171860332,6.55316373,3645.1,3642.3,0.9414]
[1753171860333,19.514,3644.4,3642.3,0.9414]
[1753171860492,5.014,3644.3,3643.2,0.9414]
[1753171860693,0.21011954,3644.3,3643.3,0.48064764]
[1753171861026,2.74273176,3646.0,3644.0,0.9153]
[1753171861191,2.74288222,3645.8,3644.3,2.74397132]
[1753171861528,19.514,3645.9,3644.4,0.48063935]
[1753171861729,0.1368,3644.7,3644.4,0.4532]
[1753171861929,0.1368,3644.7,3644.6,2.74378532]
[1753171862229,0.1368,3644.7,3644.6,4.70637232]
[1753171862438,0.1368,3644.7,3644.6,1.962587]
[1753171863014,0.1368,3644.7,3644.6,1.3685]
[1753171863927,0.1368,3644.7,3644.6,4.11228532]
[1753171864996,0.1368,3644.7,3644.6,1.3685]
[1753171865197,0.1368,3644.7,3644.6,4.11228532]
[1753171865630,3.0,3645.8,3644.6,1.3685]
[1753171865809,2.74348918,3645.0,3644.1,1.3557]
[1753171866011,5.013,3645.1,3644.1,0.9025]
[1753171866210,2.74371941,3644.7,3644.1,0.9025]
[1753171866435,0.1368,3644.3,3644.1,0.9025]
[1753171866731,0.1368,3644.3,3644.2,0.4409]
[1753171866941,2.74281052,3645.9,3644.2,0.4409]
[1753171866942,0.4621,3646.2,3644.2,0.4409]
[1753171867143,8.013,3646.0,3644.2,0.4409]
[1753171867294,8.013,3646.0,3644.4,0.9069]
[1753171867295,3.0,3646.0,3644.4,0.9069]
[1753171867495,2.74268114,3646.1,3644.7,0.9069]
[1753171867732,2.74242527,3646.5,3645.5,2.74308879]
[1753171868007,2.74232283,3646.6,3645.8,0.8929]
[1753171868208,3.0,3646.5,3645.8,3.63577938]
[1753171868418,3.0,3646.5,3645.8,0.8929]
[1753171868783,2.74235828,3646.5,3645.9,0.4409]
[1753171868948,2.74244306,3646.4,3645.9,0.4409]
[1753171869100,2.74236013,3646.5,3645.8,0.8929]
[1753171869423,17.24229453,3646.6,3646.0,0.4409]
[1753171869647,17.24229453,3646.6,3645.8,0.8929]
[1753171869648,2.74279441,3646.0,3645.8,0.8929]
[1753171869939,14.5,3646.6,3643.6,2.74449048]
[1753171869940,3.0,3646.3,3645.3,0.878]
[1753171870150,20.58856373,3646.6,3645.4,0.4409]
[1753171870318,20.58856373,3646.6,3644.8,0.878]
[1753171870638,2.74265811,3646.1,3645.3,2.74324279]
[1753171870803,14.5,3646.6,3645.4,0.4409]